Cogmind - Beta 13 --- EXPLORER MODE // 2024.04.20 @ 00:14:11 Player: Dries007 Result: Destroyed by as-83972 with Assembled Rifle Performance ------------- Evolutions (0) 0 Regions Visited (3) 600 Robots Destroyed (21) 105 Value Destroyed (518) 518 Prototype IDs (2) 40 Alien Tech Used (0) 0 Bonus (0) 0 TOTAL SCORE: 1263 Bonus ------- None Cogmind --------- Core Integrity 0/250 Matter 268/300 Energy 80/100 System Corruption 1% Temperature Cool (0) Movement Core (700) Ox13 Location -10/Exiles Parts ------- > --- POWER (2) -------- (None) > --- PROPULSION (2) --- (None) > --- UTILITY (2) ------ High-capacity Storage Unit Tractor Beam > --- WEAPON (2) ------- (None) > --- INVENTORY (20) --- High-capacity Storage Unit Small Battery (100) Large Battery (200) Small Matter Pod (50) Small Matter Pod (50) Small Matter Pod (30) Signal Interpreter Terrain Scanner Seismic Detector Peak State ------------ > --- POWER ------------ Ion Engine Light Nuclear Core > --- PROPULSION ------- Aluminum Leg Flight Unit > --- UTILITY ---------- Advanced Targeting Computer Improved Light Armor Plating > --- WEAPON ----------- High-powered Shotgun Welding Torch > --- INVENTORY -------- Small Battery Signal Interpreter Terrain Scanner Seismic Detector Tractor Beam [Rating: 16] Favorites ----------- Power Ion Engine Engine Ion Engine Power Core Light Nuclear Core Propulsion Flight Unit Leg Aluminum Leg Wheel Wheel Hover Unit Hover Unit Flight Unit Flight Unit Utility Targeting Computer Device Terrain Scanner Storage High-capacity Storage Unit Processor Targeting Computer Protection Improved Light Armor Plating Weapon Welding Torch Energy Gun EM Pulse Gun Ballistic Gun High-powered Shotgun Ballistic Cannon Light Cannon Special Weapon Welding Torch Build | -11 -10 -10 -10 ------- Run | Yrd Mat Min Exi Slots Evolved 1 | . 1 . . Power 1 | . 1 . . Propulsion . | . . . . Utility . | . . . . Weapon . | . . . . Parts Attached 61 | 11 24 24 2 Power 8 | 2 4 2 . Engine 7 | 2 3 2 . Core 1 | . 1 . . Reactor . | . . . . Propulsion 11 | 4 4 3 . Treads . | . . . . Leg 5 | 2 . 3 . Wheel 2 | 2 . . . Hover 1 | . 1 . . Flight 3 | . 3 . . Utility 28 | 3 13 10 2 Device 14 | . 7 6 1 Storage 5 | . 2 2 1 Processor 4 | 2 1 1 . Hackware . | . . . . Protection 5 | 1 3 1 . Artifact . | . . . . Weapon 14 | 2 3 9 . Energy Gun 5 | 1 2 2 . Energy Cannon . | . . . . Ballistic Gun 3 | 1 . 2 . Ballistic Cannon 2 | . 1 1 . Launcher . | . . . . Special Weapon 4 | . . 4 . Impact Weapon . | . . . . Slashing Weapon . | . . . . Piercing Weapon . | . . . . Special Melee Weapon . | . . . . Unidentified Prototypes . | . . . . Parts Lost 7 | . . 1 6 Power 1 | . . . 1 Propulsion 3 | . . 1 2 Utility 1 | . . . 1 Weapon 2 | . . . 2 Highest Loss Streak 6 | . . 1 6 To Critical Strikes . | . . . . Average Slot Usage (%) 95 | . 99 89 99 Engine 14 | . 19 11 11 Core 9 | . 4 12 11 Leg 8 | . . 2 24 Wheel 2 | . 10 . . Flight 9 | . 14 12 . Device 5 | . 4 5 6 Storage 2 | . 2 . 5 Processor 12 | . 12 12 12 Protection 3 | . 4 6 . Energy Gun 6 | . 17 3 . Ballistic Gun 8 | . 6 6 12 Special Weapon 9 | . . 14 11 Naked Turns . | . . . . Heaviest Build 94 | 12 94 17 54 Greatest Support 20 | 20 20 20 20 Greatest Overweight (x) 11 | . 11 4 2 Average Overweight (x) . | . . 2 . Largest Inventory Capacity 25 | 5 25 5 20 Average Capacity 7 | 5 8 5 11 Most Carried 10 | 5 7 5 10 Average Carried 5 | 3 4 4 6 Final Capacity 20 | 5 5 5 20 Final Carried 9 | 4 5 4 9 Class Distribution -------------------- 59% | Hacker-Mutant 40% | Scavenger-Mutant Dominant Class ---------------- Hacker-Mutant | -10/Materials Hacker-Mutant | -10/Mines Scavenger-Mutant | -10/Exiles Resources | -11 -10 -10 -10 ----------- Run | Yrd Mat Min Exi Matter Collected 920 | 316 294 270 40 Remotely 10 | . . 10 . Salvage Created 832 | 62 632 120 18 Parts 59 | 7 42 10 . Haulers Intercepted . | . . . . Recyclers Shooed 1 | . 1 . . Parts Field Recycled . | . . . . Retrieved Matter . | . . . . Parts Self-Destructed . | . . . . Prevented . | . . . . Kills | -11 -10 -10 -10 ------- Run | Yrd Mat Min Exi Combat Hostiles Destroyed 17 | 1 11 2 3 Guns 17 | 1 11 2 3 Classes Destroyed 7 | 2 4 . 1 Worker 1 | 1 . . . Builder 3 | . 2 1 . Recycler 1 | . 1 . . Watcher 2 | . 2 . . Swarmer 2 | . 2 . . Grunt 12 | 1 9 2 . Assembled 3 | . . . 3 Best Kill Streak 8 | 1 8 3 3 Combat Bots Only 4 | 1 4 2 3 Max Kills in Single Turn 2 | 1 2 1 1 Gunslinging 1 | . 1 . . Exploded . | . . . . Melee . | . . . . Uniques/NPCs Destroyed . | . . . . Combat | -11 -10 -10 -10 -------- Run | Yrd Mat Min Exi Hostile Shots Fired 133 | 1 59 10 63 Missed 45 | 1 23 4 17 Damage Taken 990 | . 251 67 672 Core 256 | . 48 20 188 Absorbed by Shields . | . . . . Redirected to Shielding 2 | . 2 . . Ignored by Resistances 592 | . 165 33 394 Core Remaining (%) 100 | 100 . . . Volleys Fired 69 | 2 40 16 11 Largest 2 | 2 2 2 2 Hottest 140 | 60 80 140 45 Shots Fired 114 | 4 75 18 17 Gun 107 | 4 75 15 13 Cannon 1 | . . 1 . Launcher . | . . . . Special 6 | . . 2 4 Kinetic 37 | 2 18 4 13 Thermal 24 | . 18 2 4 Explosive . | . . . . Electromagnetic 53 | 2 39 12 . Robot Hit Streak 27 | 2 27 9 12 Robot Miss Streak 2 | . 2 1 2 Penetration Max . | . . . . Secondary Targets 3 | . 3 . . Max Gunslinging Chain 1 | . 1 . . Shots Hit Robots 79 | 2 56 9 12 Core Hits 45 | 2 28 6 9 Critical Kills . | . . . . Critical Parts Destroyed . | . . . . Critical Strikes 1 | . 1 . . Corrupt 1 | . 1 . . Melee Attacks . | . . . . Impact . | . . . . Slashing . | . . . . Piercing . | . . . . Sneak Attacks . | . . . . Combat Hostiles . | . . . . Follow-up Attacks . | . . . . Damage Inflicted 1153 | 28 758 123 244 Guns 1149 | 28 758 123 240 Cannons . | . . . . Explosions . | . . . . Melee . | . . . . Ramming . | . . . . Kinetic 388 | 13 135 . 240 Thermal 129 | . 125 . 4 Explosive . | . . . . Electromagnetic 636 | 15 498 123 . Impact . | . . . . Slashing . | . . . . Piercing . | . . . . Highest Corruption 1 | . 1 1 1 Average Corruption 1 | . 1 1 1 Corruption Purged . | . . . . Corruption Blocked . | . . . . Effects 21 | . 6 6 9 Message Errors 4 | . 1 . 3 Matter Fused 4 | . . 4 . Heat Flow Errors 1 | . . 1 . Energy Discharges 3 | . 1 1 1 Data Loss (minor) 4 | . 1 . 3 Misfires 2 | . . . 2 Alerts 1 | . 1 . . Weapon Failures 2 | . 2 . . Overload Shots . | . . . . Overflow Damage . | . . . . Projectiles . | . . . . Explosions . | . . . . Melee . | . . . . Knockbacks . | . . . . Impact . | . . . . Kinetic . | . . . . Secondary . | . . . . Self-Inflicted Damage . | . . . . Shots . | . . . . Rammed 1 | . . 1 . Targets Rammed 1 | . . 1 . Kicked . | . . . . Crushed . | . . . . Highest Temperature 372 | . 343 372 6 Average Temperature 132 | . 131 149 3 Received Heat Transfer 306 | . 219 87 . Effects 3 | . . 3 . Interference 1 | . . 1 . Short Circuit 1 | . . 1 . Damage (minor) 1 | . . 1 . Siege Activations . | . . . . Robots Corrupted . | . . . . Combat Hostiles . | . . . . Parts Fried 2 | . 2 . . Impact Corruptions . | . . . . Robots Melted . | . . . . Combat Hostiles . | . . . . Parts Melted . | . . . . Heat Transferred 300 | . 275 . 25 Parts Sabotaged . | . . . . Parts Stolen . | . . . . Parts Stripped . | . . . . Power Chain Reactions . | . . . . Alert | -11 -10 -10 -10 ------- Run | Yrd Mat Min Exi Peak Influence 216 | 25 216 98 . Initial 52 | . 12 52 . Average 61 | 16 124 30 . Maximum Alert Level 1 | . 1 . . Low Security (%) 94 | 100 83 100 . Level 1 5 | . 16 . . Level 2 . | . . . . Level 3 . | . . . . Level 4 . | . . . . Level 5 . | . . . . High Security . | . . . . Max Security . | . . . . Squads Dispatched 5 | . 4 1 . Investigation 5 | . 4 1 . Extermination . | . . . . Reinforcement . | . . . . Assault . | . . . . Garrison . | . . . . Intercept . | . . . . Searches Triggered . | . . . . Construction Impeded . | . . . . Haulers Reinforced . | . . . . Active Scanning Responses . | . . . . Cargo Convoy Interrupts . | . . . . Stealth | -11 -10 -10 -10 --------- Run | Yrd Mat Min Exi Distress Signals 1 | . 1 . . Communications Jammed . | . . . . Distress Signals . | . . . . Times Spotted 24 | 1 15 2 6 Peak Tracking Total 9 | 1 4 2 9 Tactical Retreats . | . . . . Traps | -11 -10 -10 -10 ------- Run | Yrd Mat Min Exi Traps Triggered 2 | . 2 . . Indirectly . | . . . . Trap Hack Attempts . | . . . . Triggered . | . . . . Disarmed . | . . . . Reprogrammed . | . . . . Reused . | . . . . Traps Extracted . | . . . . Installed . | . . . . Triggered . | . . . . Most Traps Carried 2 | . . 2 . Machines | -11 -10 -10 -10 ---------- Run | Yrd Mat Min Exi Machines Disabled 3 | . 1 . 2 Max in Single Turn 1 | . 1 . 1 Machines Repaired . | . . . . Machines Dismantled . | . . . . Machines Sabotaged . | . . . . Overloaded Fab Kills . | . . . . Hacking | -11 -10 -10 -10 --------- Run | Yrd Mat Min Exi Machines Accessed 8 | . 6 1 1 Terminals 6 | . 6 . . Fabricators . | . . . . Repair Stations . | . . . . Recycling Units . | . . . . Scanalyzers . | . . . . Garrison Access . | . . . . Total Hacks 55 | . 31 1 23 Successful 46 | . 22 1 23 Failed 9 | . 9 . . Catastrophic 1 | . 1 . . Database Lockouts . | . . . . Manual . | . . . . Terminals 31 | . 31 . . Fabricators . | . . . . Repair Stations . | . . . . Recycling Units . | . . . . Scanalyzers . | . . . . Garrison Access . | . . . . Terminal Hacks 46 | . 22 1 23 Record 32 | . 9 . 23 Prototype ID Bank 1 | . 1 . . Open Door 1 | . . 1 . Branch Access Points 1 | . 1 . . Emergency Access Points 1 | . 1 . . Alert Level 3 | . 3 . . Dispatch Records 1 | . 1 . . Maintenance Status 1 | . 1 . . Security Status 1 | . 1 . . Hauler Manifests 2 | . 2 . . Registered Prototypes 1 | . 1 . . Zone Layout 1 | . 1 . . Fabricator Hacks . | . . . . Repair Station Hacks . | . . . . Recycling Unit Hacks . | . . . . Scanalyzer . | . . . . Garrison Access Hacks . | . . . . Unauthorized Hacks . | . . . . Terminals . | . . . . Fabricators . | . . . . Repair Stations . | . . . . Recycling Units . | . . . . Scanalyzers . | . . . . Garrison Access . | . . . . Data Cores Recovered . | . . . . Used . | . . . . Hacking Detections 5 | . 5 . . Full Trace Events 5 | . 5 . . Feedback Events . | . . . . Feedback Blocked . | . . . . Robot Schematics Acquired . | . . . . Robots Built . | . . . . Authchips . | . . . . Time . | . . . . Total Robot Build Rating . | . . . . Part Schematics Acquired . | . . . . Parts Built . | . . . . Authchips . | . . . . Time . | . . . . Total Part Build Rating . | . . . . Parts Repaired . | . . . . Time . | . . . . Parts Recycled . | . . . . Recycled Matter . | . . . . Retrieved Matter . | . . . . Retrieved Components . | . . . . Parts Scanalyzed . | . . . . Part Schematics Acquired . | . . . . Parts Damaged . | . . . . Bothacking | -11 -10 -10 -10 ------------ Run | Yrd Mat Min Exi Used RIF Installer . | . . . . Robots Hacked . | . . . . Non-combat . | . . . . Combat . | . . . . Robot Hacks Applied . | . . . . Relay Couplers Released . | . . . . Fabnet Peak Effective % . | . . . . Robots Rewired . | . . . . Allies Hacked . | . . . . Hacks Repelled . | . . . . Allies | -11 -10 -10 -10 -------- Run | Yrd Mat Min Exi Total Allies 1 | . . 1 . Largest Group 1 | . . 1 1 Highest-Rated Group 31 | . . 31 31 Highest-Rated Ally 31 | . . 31 31 Total Orders . | . . . . Ally Attacks . | . . . . Total Damage . | . . . . Kills . | . . . . Allies Corrupted . | . . . . Allies Melted . | . . . . Intel | -11 -10 -10 -10 ------- Run | Yrd Mat Min Exi Robot Analysis Total . | . . . . Derelict Logs Recovered . | . . . . Drone Launches . | . . . . Drone Recoveries . | . . . . Exploration | -11 -10 -10 -10 ------------- Run | Yrd Mat Min Exi Turns Passed 2771 | 221 707 1083 760 Spaces Moved 1577 | 228 471 414 464 Core 19 | 19 . . . Treads . | . . . . Legs 543 | . . 79 464 Wheels 470 | 209 261 . . Hover . | . . . . Flight 545 | . 210 335 . Fastest Speed 50 | 50 80 117 120 Average Speed 153 | 77 112 239 156 Slowest Speed 917 | 80 917 360 260 Overloaded Moves . | . . . . Propulsion Burnouts . | . . . . Robots Hopped . | . . . . Cave-ins Triggered . | . . . . Exploration Rate (%) 51 | 8 51 74 74 Regions Visited 3 Branch Regions 2 Pre-discovered Areas 1 | . . . 1 Known Exits Taken 3 | 1 1 1 . Unknown Exits Taken . | . . . . Scrap Searched . | . . . . Spaces Dug 1 | . . 1 . Terrain Destroyed 1 | . . 1 . Melee . | . . . . Projectile 1 | . . 1 . AOE . | . . . . Terrain Rammed . | . . . . Walls Destroyed . | . . . . Machines Disabled . | . . . . Actions | -11 -10 -10 -10 --------- Run | Yrd Mat Min Exi Total 1811 | 272 572 484 483 Wait 16 | 6 10 . . Move 1574 | 227 470 413 464 Hop . | . . . . Pick Up 47 | 17 12 12 6 Fast Attach 5 | . 3 2 . Attach 26 | 11 7 7 1 Detach 10 | 4 3 3 . Swap 30 | . 14 15 1 Drop 33 | 5 13 15 . Fire 69 | 2 40 16 11 Melee . | . . . . Ram 1 | . . 1 . Kick . | . . . . Crush . | . . . . Escape Stasis . | . . . . Rewire . | . . . . Trap . | . . . . Miscellaneous . | . . . . Route ------- -11/Scrapyard -10/Materials (discovered 2 exits: *Mat / *Min) -10/Mines (discovered 2 exits: *Mat / *Exi) -10/Exiles (discovered 1 exit: *Min) History --------- Turn | Location | Event 2 | -11/Scrapyard | Met Revision 17 76 | -11/Scrapyard | Identified exit to Materials 76 | -11/Scrapyard | Discovered exit to Materials (range 8) 222 | -11/Scrapyard | Entered Materials 222 | -10/Materials | Evolved 1 slot: Power x1 300 | -10/Materials | Build established: Hacker-Mutant 416 | -10/Materials | Identified exit to Materials 416 | -10/Materials | Discovered exit to Materials (range 14) 490 | -10/Materials | Identified exit to Mines 929 | -10/Materials | Entered Mines 941 | -10/Mines | Assembled infested the area 953 | -10/Mines | Discovered exit to Materials (range 5) 1016 | -10/Mines | Found a hidden stash of uninstalled traps 1026 | -10/Mines | Build established: Scavenger-Mutant 1415 | -10/Mines | Met a Derelict shopkeep closing up shop 1718 | -10/Mines | Build established: Hacker-Mutant 1980 | -10/Mines | Received a Mining Laser from a helpful Derelict 2007 | -10/Mines | Identified exit to Exiles 2007 | -10/Mines | Discovered exit to Exiles (range 5) 2012 | -10/Mines | Entered Exiles 2012 | -10/Exiles | Accompanied by 1 ally 2032 | -10/Exiles | Identified exit to Mines 2032 | -10/Exiles | Discovered exit to Mines (range 15) 2046 | -10/Exiles | Met 8R-AWN 2070 | -10/Exiles | Met EX-HEX 2117 | -10/Exiles | Met EX-DEC 2183 | -10/Exiles | Visited The Gauntlet 2282 | -10/Exiles | Build established: Scavenger-Mutant 2369 | -10/Exiles | Learned location of Zion (-7) 2719 | -10/Exiles | Attacked by the Exiles 2732 | -10/Exiles | Build established: Hacker-Mutant 2756 | -10/Exiles | Core integrity fell below 50% 2764 | -10/Exiles | Core integrity fell below 20% 2772 | -10/Exiles | Destroyed by as-83972 with Assembled Rifle Last Messages --------------- System corrupted: FCS attempts to trigger Hpw. Shotgun. System corrupted: Hpw. Shotgun misfires. Machine disabled. EXILES: Hostile robot within lab perimeter. Defensive protocols time, folks! Machine disabled. as-33207 destroyed. Ion Engine severed. as-13257 destroyed. Machine disabled. Welding Torch destroyed. Aluminum Leg destroyed. Lgt. Nuclear Core destroyed. Aluminum Leg destroyed. Destroyed Asb. Hover Unit. as-06834 destroyed. Adv. Targeting Computer destroyed. Hpw. Shotgun destroyed. [Achievement: First Step to Greatness] Map ----- +----------------------------------------------------+ | ?????????????????????????????????????????????????? | | ?????????????????????????????????????????????????? | | ?????????????????????????????????????????????????? | | ?????????????????????????????????????????????????? | | ?????????????????????????????????????????????????? | | ?????????????????????????????????????????????????? | | ?????????????????????????????????????????????????? | | ?????????????????????????????????????????????????? | | ?????????????????????????????????????????????????? | | ?????????????????????????????????????????????????? | | ?????????????????????????????????????????????????? | | ?????????????????????????????????????????????????? | | ?????????????????????????????????????????????????? | | ???????????????????????#####?????????????????????? | | ???????????????????????#!!! ?????????????????????? | | ??????????????"????????# ?????????????????????? | | ????????????? ???????# "????????????????????? | | ????????????? ?????## "?????????????????????? | | ???????????? ##??#" "??????????????? """??? | | ???????????? ##" "??????????????" """#?? | | ???????????? #"" #??????????????" ??? | | ????????????? #?????????????"" ??? | | ???????????????# ##????????????"" "#?? | | ????????????????## "#???????????? ""??? | | ????????????????#" aa ###???????????" "???? | | ???????????????""" @% ##????????#?# #???? | | ??????????! "###" % ######???### ###?# | | ???????????????????????## "#####X# #"### | | ????????????????????????#" """" | | ????????????????????????#"# "" " | | ????????????????????????#### " | | ???????????????????????????### | | ?????????????????????????????### a | | ???????????????????????????????## | | ????????????????????????????????## | | ????????????????????????????#???### | | ??????????????????????????????????#""" | | ???????????????????????????#?????##" | | ???????????????????????????????#?#"" | | ????????????????????????????????##""" "" | | ??????????????????????#?????????#""" """ | | ??????????????????????????#?????#""" "" | | ????????????????????????????????#"" # | | ?????????????????????????#??????#""" | | ????????????????????????????????#"" | | ????????????????????????????#?#?##"" | | ?????????????????????????????????#"""" | | ?????????????????????????#???????## | | ??????????????????????????????#???#" | | ??????????????????????????????????#"""" | +----------------------------------------------------+ Best States ------------- Heat Dissipation 35 Energy Generation 19 Energy Capacity 400 Matter Stores 300 Matter Capacity 300 Sight Range 16 Terrain Scan Range 14 Terrain Scan Density 10 Armor Coverage 150 Resistance: KI 35 Resistance: TH 35 Resistance: EX 35 Resistance: EM 35 Resistance: I 35 Resistance: S 35 Resistance: P 35 Weapon Shielding 33 Evasion (%) 55 Targeting Accuracy 8 Offensive Hacking 20 Item Schematics ----------------- None Robot Schematics ------------------ None Fabricated ------------ Nothing Alien Tech Used ----------------- None Achievements -------------- Crack Shot First Step to Greatness Librarian One Hack Too Far Shopping List Challenges ------------ None Game ------ Seed FlightArchitectSpecial Manual? 0 Play Time 01:09:37 Cumulative 1.1 hours Start 2024.04.13 @ 20:05:10 End 2024.04.20 @ 00:14:11 Sessions 3 Manual Loads 0 Difficulty Explorer Special Mode None Game No. 1 Rogue 0 Adventurer 0 Explorer 1 Win Type - Total 0 Types 0/0/0/0/0/0/0/0/0 Lore% 5 Gallery% 2 Achievement% 1 Wizard Run 0 Options --------- Layout 1 ASCII 0 Keyboard 0 Movement Numpad Keybinds 0 Fullscreen 2 Font 32/SmallcapsGlow Map View 50x35 Zoom Use 0% Tactical HUD 0 Map Filters NONE Filters NONE Steam 1 RUN: 4abda7b1-edb1-4b0b-b77a-b14c2c29964e